fUST/lending_fUST_20240530
["ID","MTS","AMOUNT","RATE_DAILY","PERIOD"]
[328233761,1717080644667,-425.96617072,0.0008219,7]
[328233763,1717080644676,-500.0,0.00082191,120]
[328233765,1717080644686,-10803.59041396,0.00087669,120]
[328233767,1717080644695,-500.0,0.00087671,120]
[328233769,1717080644704,-2356.88,0.00090089,3]
[328233771,1717080644713,-714.35081205,0.00090096,61]
[328233773,1717080644723,-3782.93654,0.00090099,14]
[328233775,1717080644733,-500.0,0.0009315,120]
[328233777,1717080644743,-380.7609,0.0009863,120]
[328233779,1717080644751,-19341.08930486,0.0009888,120]
[328233781,1717080644761,-2010.71843202,0.001,120]
[328233783,1717080644770,-4131.0,0.00102894,120]
[328233785,1717080644779,-4131.0,0.00130291,120]
[328233787,1717080644788,-2000.0,0.001499,120]
[328233789,1717080644798,-100264.66216007,0.0015,2]
[328233791,1717080644807,-4131.0,0.00157689,120]
[328233793,1717080644816,-4131.0,0.00185086,120]
[328233795,1717080644825,-155.16500447,0.00195998,30]
[328233797,1717080644834,-3919.80062683,0.00198299,2]
[328233799,1717080644843,-3919.80062683,0.00198437,2]
[328233801,1717080644852,-3919.80062683,0.00198878,2]
[328233803,1717080644861,-3919.80062683,0.00199015,2]
[328233804,1717080644871,-3919.80062683,0.00199303,2]
[328233806,1717080644880,-3919.80062683,0.00199554,2]
[328233809,1717080644890,-538.0464872,0.00199689,120]
[328233811,1717080644900,-500.0,0.00199689,120]
[328233812,1717080644910,-2785031.57600737,0.0019969,120]
[328233814,1717080644919,-88888.0,0.001997,120]
[328233816,1717080644928,-3919.80062683,0.00199897,2]
[328233818,1717080644938,-220.95,0.0019997,35]
[328233820,1717080644947,-150.5,0.0019998,35]
[328233822,1717080644956,-150.5,0.0019999,35]
[328233824,1717080644966,-655.78378685,0.00199998,39]
[328233826,1717080644975,-785.86891014,0.00199998,30]
[328233828,1717080644984,-258.99290934,0.00199998,30]
[328233830,1717080644994,-47113.26415869,0.00199998,2]
[328233832,1717080645003,-1837.84017983,0.00199998,60]
[328233834,1717080645012,-947.41024368,0.00199998,30]
[328233836,1717080645021,-155.26141367,0.00199998,30]
[328233838,1717080645030,-1314.63117139,0.00199998,30]
[328233840,1717080645039,-10530.77766411,0.00199998,30]
[328233842,1717080645048,-361.52069986,0.00199998,30]
[328233844,1717080645057,-371.8824724,0.00199998,30]
[328233846,1717080645067,-59549.37120483,0.00199998,30]
[328233848,1717080645078,-9573.60369169,0.00199998,30]
[328233850,1717080645087,-187.08126844,0.00199998,30]
[328233852,1717080645096,-758.67998318,0.00199998,30]
[328233854,1717080645105,-179.2244186,0.00199998,30]
[328233856,1717080645114,-3744.87032454,0.00199998,30]
[328233859,1717080645126,-326.15086212,0.00199998,2]
[328233861,1717080645135,-2033.47495412,0.00199998,2]
[328233863,1717080645144,-282.72196176,0.00199998,30]
[328233865,1717080645153,-2638.45567811,0.00199998,30]
[328233867,1717080645162,-1498.84404502,0.00199998,30]
[328233869,1717080645171,-2117.69044916,0.00199998,30]
[328233870,1717080645180,-1279.86056259,0.00199998,30]
[328233872,1717080645189,-445.56614937,0.00199998,30]
[328233874,1717080645199,-55424.90490287,0.00199998,30]
[328233876,1717080645208,-7905.42450529,0.00199998,30]
[328233878,1717080645217,-6833.60279836,0.00199999,120]
[328233880,1717080645228,-188.75784192,0.002,30]
[328233882,1717080645237,-1000.0,0.002,120]
[328233884,1717080645246,-9469226.04501255,0.002,120]
[328233886,1717080645255,-859.76864034,0.002,2]
[328233888,1717080645264,-479.61283074,0.002,120]
[328233890,1717080645274,-200.0,0.002,120]
[328233892,1717080645283,-687.32807449,0.002,15]
[328233894,1717080645292,-1284.60374938,0.002,30]
[328233896,1717080645301,-417.25049002,0.002,7]
[328233898,1717080645312,-3919.80062683,0.00200315,2]
[328233900,1717080645322,-3919.80062683,0.00200551,2]
[328233902,1717080645332,-151.0,0.00200685,120]
[328233904,1717080645342,-3919.80062683,0.00200948,2]
[328233906,1717080645351,-3919.80062684,0.00201158,2]
[328233908,1717080645360,-4131.0,0.00212483,120]
[328233910,1717080645369,-151.0,0.00214384,120]
[328233912,1717080645379,-5000.0,0.00215,120]
[328233914,1717080645388,-151.0,0.00228082,120]
[328233916,1717080645397,-1000.0,0.0023392,120]
[328233918,1717080645406,-5000.0,0.00238,120]
[328233920,1717080645416,-4131.0,0.0023988,120]
[328233922,1717080645425,-1021.24668162,0.0024,90]
[328233924,1717080645434,-151.0,0.00241781,120]
[328233926,1717080645443,-2880.67,0.00243063,120]
[328233928,1717080645452,-2840.87,0.00243063,120]
[328233930,1717080645461,-3011.38,0.00243063,120]
[328233932,1717080645470,-2903.74,0.00243063,120]
[328233934,1717080645480,-2968.58,0.00243063,120]
[328233936,1717080645489,-2916.27,0.00243063,120]
[328233938,1717080645499,-2983.55,0.00243063,120]
[328233940,1717080645509,-2954.15,0.00243063,120]
[328233942,1717080645518,-2849.4,0.00243063,120]
[328233944,1717080645527,-1971.3822274,0.00243063,120]
[328233946,1717080645536,-155.0,0.00244032,120]
[328233948,1717080645545,-1317.0,0.00244775,89]
[328233950,1717080645555,-150.05098619,0.0024987,120]
[328233952,1717080645564,-1998.83335984,0.0025,120]
[328233954,1717080645575,-1000.0,0.0025,120]
[328233956,1717080645584,-219.84663704,0.0025,120]
[328233958,1717080645593,-450.0,0.0025,120]
[328233960,1717080645603,-151.0,0.00255479,120]
[328233962,1717080645612,-10000.00000001,0.00259,120]
[328233964,1717080645621,-5000.0,0.00265,120]
[328233966,1717080645631,-4131.0,0.00267278,120]
[328233968,1717080645640,-84972.8987201,0.00268,120]
[328233970,1717080645649,-151.0,0.00269178,120]
[328233972,1717080645660,-302.322018,0.00273973,120]
[328233974,1717080645670,-302.322018,0.00273973,120]
[328233976,1717080645679,-302.322018,0.00273973,120]
[328233978,1717080645689,-2500.0,0.0028,120]
[328233980,1717080645698,-151.0,0.00282877,120]
[328233982,1717080645707,-156.79615499,0.00289,120]
[328233984,1717080645717,-529.32016529,0.0029,120]
[328233986,1717080645726,-4131.0,0.00294675,120]
[328233988,1717080645735,-151.0,0.00296575,120]
[328233990,1717080645744,-1998.41312122,0.003,120]
[328233992,1717080645754,-500.0,0.003,120]
[328233994,1717080645763,-450.0,0.003,120]
[328233996,1717080645772,-4980331.15629554,0.003,120]
[328234028,1717080646060,-1733.47364966,0.003,120]
[328234030,1717080646071,-1804.323423,0.003,120]
[328234032,1717080646084,-11606.24638044,0.003,120]
[328234034,1717080646095,-708.000005,0.003,120]
[328234116,1717080646971,-186773.44395595,0.003,120]
[328234119,1717080646992,-2689.1739351,0.00066855,2]
[328234122,1717080647001,-8035.05180963,0.003,120]
[328234126,1717080647015,-2661.0,0.003,120]
[328234128,1717080647026,-3374.5013947,0.003,120]
[328234130,1717080647038,-3453.62456321,0.003,120]
[328234455,1717080651243,154.92253873,0.00033,7]
[328234609,1717080652712,364.55714172,0.00032,4]
[328234765,1717080654480,201.92921771,0.00016421,2]
[328234767,1717080656546,234.81431649,0.00031656,2]
[328234773,1717080672520,242.95757279,0.00031656,2]
[328234774,1717080673215,154.92253873,0.00033,7]
[328234775,1717080674653,364.55714172,0.00032,4]
[328234777,1717080692800,364.55714172,0.00032,4]
[328234778,1717080695345,161.15563029,0.00033,7]
[328234779,1717080708651,364.55714172,0.00032,4]
[328234780,1717080732673,364.55714172,0.00032,4]
[328234781,1717080752671,364.55714172,0.00032,4]
[328234784,1717081622286,234.69076101,0.000275,30]
[328234785,1717081711723,-150.0,0.000299,2]
[328234786,1717081711747,-468.87960925,0.00032,4]
[328234787,1717081711772,-150.0,0.000349,2]
[328234788,1717081711795,-458.21871633,0.00035,15]
[328234789,1717081711820,-1545.03926107,0.00038,120]
[328234790,1717081711961,-24900.0,0.0004614,2]
[328234791,1717081711988,-306.964877,0.00047532,2]
[328234792,1717081712012,-200.0,0.00049999,5]
[328234793,1717081712037,-154.92253873,0.0005,30]
[328234794,1717081712061,-4216.38153666,0.0005,60]
[328234809,1717081812292,-1545.03926107,0.00038,120]
[328234810,1717081812316,-154.93802479,0.0005,30]
[328234811,1717081812340,-3373.10522933,0.0005,60]
[328234812,1717081812366,-458.21871633,0.0005,15]
[328235027,1717081838797,-1545.03926107,0.00038,120]
[328235028,1717081838816,-134.46073823,0.0005,30]
[328235109,1717081843244,-20.47728656,0.0005,30]
[328235110,1717081843254,-366.57497306,0.0005,15]
[328235111,1717081843263,-3373.10522933,0.0005,60]
[328235112,1717081843272,-831.57184444,0.000599,28]
[328235113,1717081843282,-160.0,0.0006,60]
[328235114,1717081843412,-306.964877,0.00071298,30]
[328235115,1717081843422,-500.0,0.00082191,120]
[328235116,1717081843432,-521.97323765,0.00082191,120]
[328235117,1717081843442,-154.86062544,0.00082191,120]
[328235118,1717081843452,-500.0,0.00082191,120]
[328235119,1717081843462,-93.37192652,0.00082192,30]
[328235120,1717081843475,-85.62707348,0.00082192,30]
[328235121,1717081843485,-460.7445878,0.00087671,120]
[328235122,1717081843495,-132.58833872,0.00098622,14]
[328235123,1717081843507,-3167.34922923,0.00098622,14]
[328235124,1717081843519,-1071.39735,0.00098622,14]
[328235128,1717081843532,-2816.51599288,0.00098622,14]
[328235131,1717081843540,-5809.67347593,0.00098622,30]
[328235133,1717081843552,-2443.32791351,0.00098623,30]
[328235134,1717081843560,-154.93802479,0.00098624,4]
[328235136,1717081843571,-3583.57527138,0.00098624,14]
[328235137,1717081843580,-154.93802479,0.00104095,14]
[328235138,1717081843590,-2240.97827925,0.00104095,2]
[328235139,1717081843599,-769.82381545,0.00104096,14]
[328235140,1717081843612,-7021.36102354,0.00104097,120]
[328235460,1717081846992,-154.93802479,0.00104094,14]
[328235463,1717081847001,-1194.38341927,0.00104097,120]
[328235466,1717081847011,-174.7215615,0.001041,21]
[328235469,1717081847021,-8065.97519127,0.00104101,14]
[328235470,1717081847030,-12964.30849675,0.00104102,120]
[328235472,1717081847039,-506.86429298,0.00104108,120]
[328235474,1717081847049,-524.54992084,0.00104108,120]
[328235476,1717081847059,-500.0,0.00104108,120]
[328235479,1717081847072,-316.0421936,0.00104108,120]
[328235481,1717081847082,-500.0,0.00104108,120]
[328235483,1717081847092,-831.57184443,0.00108471,28]
[328235485,1717081847101,-500.0,0.00109586,120]
[328235487,1717081847110,-500.0,0.00109586,120]
[328235489,1717081847120,-649.99999999,0.00109586,120]
[328235491,1717081847128,-500.0,0.00109586,120]
[328235493,1717081847140,-500.0,0.00109586,120]
[328235495,1717081847149,-500.0,0.00109586,120]
[328235497,1717081847159,-2185.42,0.00109587,120]
[328235499,1717081847168,-500.0,0.00109587,120]
[328235501,1717081847177,-500.0,0.00109588,120]
[328235503,1717081847186,-500.0,0.00109588,120]
[328235505,1717081847195,-500.0,0.00115067,120]
[328235507,1717081847205,-2185.42,0.00115067,120]
[328235509,1717081847215,-500.0,0.00115067,120]
[328235511,1717081847224,-500.0,0.00115067,120]
[328235513,1717081847233,-1250.0,0.00120546,120]
[328235515,1717081847242,-525.78,0.00120546,120]
[328235517,1717081847252,-2185.42,0.00120546,120]
[328235519,1717081847261,-500.0,0.00120546,120]
[328235521,1717081847270,-552.59006776,0.00120547,120]
[328235523,1717081847279,-500.0,0.00120547,120]
[328235525,1717081847288,-1250.0,0.00126026,120]
[328235527,1717081847298,-525.78,0.00126026,120]
[328235529,1717081847310,-2185.42,0.00126026,120]
[328235531,1717081847319,-500.0,0.00126026,120]
[328235533,1717081847328,-500.0,0.00126026,120]
[328235535,1717081847337,-1250.0,0.00131505,120]
[328235537,1717081847347,-525.78,0.00131505,120]
[328235539,1717081847356,-2185.42,0.00131505,120]
[328235541,1717081847365,-500.0,0.00131505,120]
[328235543,1717081847374,-500.0,0.00131506,120]
[328235545,1717081847383,-2145.93332478,0.00136884,14]
[328235547,1717081847392,-1250.0,0.00136984,120]
[328235549,1717081847402,-525.78,0.00136984,120]
[328235551,1717081847411,-2185.42,0.00136984,120]
[328235553,1717081847420,-500.0,0.00136984,120]
[328235555,1717081847430,-500.0,0.00136985,120]
[328235557,1717081847439,-576.45036692,0.00136986,120]
[328235559,1717081847448,-1250.0,0.00142464,120]
[328235561,1717081847457,-525.78,0.00142464,120]
[328235563,1717081847466,-2185.42,0.00142464,120]
[328235565,1717081847475,-500.0,0.00142464,120]
[328235567,1717081847484,-500.0,0.00142464,120]
[328235569,1717081847493,-1250.0,0.00147943,120]
[328235571,1717081847502,-525.78,0.00147943,120]
[328235573,1717081847512,-2185.42,0.00147943,120]
[328235575,1717081847521,-500.0,0.00147943,120]
[328235577,1717081847531,-500.0,0.00147944,120]
[328235579,1717081847542,-1250.0,0.00153423,120]
[328235581,1717081847552,-525.78,0.00153423,120]
[328235583,1717081847561,-2185.42,0.00153423,120]
[328235585,1717081847570,-500.0,0.00153423,120]
[328235587,1717081847578,-500.0,0.00153423,120]
[328235589,1717081847588,-831.57184443,0.00157043,28]
[328235591,1717081847597,-1250.0,0.00158902,120]
[328235593,1717081847607,-525.78,0.00158902,120]
[328235595,1717081847620,-2185.42,0.00158902,120]
[328235597,1717081847629,-500.0,0.00158902,120]
[328235599,1717081847638,-500.0,0.00158903,120]
[328235601,1717081847648,-1250.0,0.00164382,120]
[328235603,1717081847658,-525.78,0.00164382,120]
[328235605,1717081847667,-2185.42,0.00164382,120]
[328235607,1717081847677,-500.0,0.00164382,120]
[328235609,1717081847686,-500.0,0.00164382,120]
[328235611,1717081847698,-1250.0,0.00169861,120]
[328235614,1717081847710,-525.78,0.00169861,120]
[328235615,1717081847719,-2185.42,0.00169861,120]
[328235616,1717081847727,-500.0,0.00169861,120]
[328235617,1717081847736,-500.0,0.00169862,120]
[328235618,1717081847745,-1250.0,0.00175341,120]
[328235620,1717081847755,-525.78,0.00175341,120]
[328235622,1717081847764,-2185.42,0.00175341,120]
[328235624,1717081847773,-500.0,0.00175341,120]
[328235626,1717081847783,-500.0,0.00175341,120]
[328235628,1717081847792,-1250.0,0.0018082,120]
[328235630,1717081847802,-525.78,0.0018082,120]
[328235632,1717081847811,-2185.42,0.0018082,120]
[328235634,1717081847821,-500.0,0.0018082,120]
[328235636,1717081847830,-500.0,0.00180821,120]
[328235638,1717081847839,-1250.0,0.001863,120]
[328235640,1717081847848,-525.78,0.001863,120]
[328235642,1717081847857,-2185.42,0.001863,120]
[328235644,1717081847867,-603.7226,0.001863,120]
[328235646,1717081847876,-1065.0,0.0019,120]
[328235648,1717081847885,-1250.0,0.00191779,120]
[328235650,1717081847896,-525.78,0.00191779,120]
[328235652,1717081847905,-2185.42,0.00191779,120]
[328235654,1717081847914,-1250.0,0.00197258,120]
[328235656,1717081847924,-525.78,0.00197258,120]
[328235658,1717081847933,-2185.42,0.00197258,120]
[328235660,1717081847942,-7500.0,0.002,120]
[328235662,1717081847951,-1250.0,0.00202738,120]
[328235664,1717081847960,-525.78,0.00202738,120]
[328235666,1717081847970,-2185.42,0.00202738,120]
[328235668,1717081847979,-831.57184443,0.00205614,28]
[328235670,1717081847989,-1250.0,0.00208217,120]
[328235672,1717081847999,-525.78,0.00208217,120]
[328235674,1717081848008,-2185.42,0.00208217,120]
[328235676,1717081848018,-1250.0,0.00213697,120]
[328235678,1717081848027,-525.78,0.00213697,120]
[328235680,1717081848036,-2185.42,0.00213697,120]
[328235682,1717081848045,-1250.0,0.00219176,120]
[328235684,1717081848056,-525.78,0.00219176,120]
[328235686,1717081848065,-2185.42,0.00219176,120]
[328235688,1717081848076,-1250.0,0.00224656,120]
[328235690,1717081848088,-525.78,0.00224656,120]
[328235693,1717081848099,-2185.42,0.00224656,120]
[328235695,1717081848110,-1250.0,0.00230135,120]
[328235697,1717081848120,-525.78,0.00230135,120]
[328235699,1717081848132,-2185.42,0.00230135,120]
[328235702,1717081848143,-1250.0,0.00235615,120]
[328235704,1717081848154,-525.78,0.00235615,120]
[328235706,1717081848165,-2185.53009868,0.00235615,120]
[328235708,1717081848176,-1250.0,0.00241094,120]
[328235711,1717081848187,-525.78,0.00241094,120]
[328235713,1717081848198,-357.17540603,0.00246573,61]
[328235715,1717081848207,-1250.0,0.00246573,120]
[328235717,1717081848218,-525.79984869,0.00246573,120]
[328235719,1717081848228,-831.57184443,0.00254186,28]
[328235721,1717081848237,-206.44649455,0.00269998,30]
[328235723,1717081848248,-210.216723,0.00273973,120]
[328235725,1717081848258,-293.26648,0.00273973,120]
[328235728,1717081848269,-151.0,0.00273973,120]
[328235730,1717081848279,-322.465552,0.00273973,120]
[328235732,1717081848289,-322.465552,0.00273973,120]
[328235734,1717081848299,-322.465552,0.00273973,120]
[328235736,1717081848309,-322.465552,0.00273973,120]
[328235738,1717081848319,-322.465552,0.00273973,120]
[328235740,1717081848329,-322.465552,0.00273973,120]
[328235742,1717081848339,-322.465552,0.00273973,120]
[328235744,1717081848349,-322.465552,0.00273973,120]
[328235746,1717081848360,-322.465552,0.00273973,120]
[328235748,1717081848370,-322.465552,0.00273973,120]
[328235750,1717081848380,-322.465552,0.00273973,120]
[328235752,1717081848391,-322.465552,0.00273973,120]
[328235754,1717081848401,-322.465552,0.00273973,120]
[328235756,1717081848412,-322.465552,0.00273973,120]
[328235758,1717081848422,-322.465552,0.00273973,120]
[328235760,1717081848432,-322.465552,0.00273973,120]
[328235762,1717081848442,-322.465552,0.00273973,120]
[328235765,1717081848452,-322.465552,0.00273973,120]
[328235767,1717081848462,-322.465552,0.00273973,120]
[328235770,1717081848478,-151.0,0.00273973,120]
[328235772,1717081848497,-520.68183477,0.00284998,30]
[328235775,1717081848510,-1000.0,0.0029,120]
[328235777,1717081848522,-772.80269352,0.00296998,90]
[328235779,1717081848533,-200.0,0.002994,120]
[328235782,1717081848546,-2000.0,0.002998,120]
[328235784,1717081848559,-500.0,0.00299889,120]
[328235786,1717081848570,-350.0,0.00299889,120]
[328235788,1717081848582,-500.0,0.00299889,120]
[328235791,1717081848593,-317276.40213112,0.0029989,120]
[328235820,1717083005653,-845.1,0.00020957,2]
[328235821,1717083005681,-9175.23470975,0.00022,2]
[328235822,1717083005707,-3856.03377348,0.00023,2]
[328235823,1717083005733,-6222.5162,0.00028259,120]
[328235824,1717083005759,-166.666666,0.00028674,2]
[328235825,1717083005786,-484.36412074,0.0003,3]
[328235826,1717083005810,-166.666666,0.00030629,2]
[328235827,1717083005837,-166.666666,0.00032583,2]
[328235828,1717083005865,-24900.0,0.00034809,2]
[328235829,1717083005892,-845.1,0.0003551,3]
[328235830,1717083005917,-1545.03926107,0.00038,120]
[328235831,1717083005940,-11479.39953107,0.000458,30]
[328235832,1717083005965,-620.00194828,0.00047972,15]
[328235833,1717083005989,-154.93802479,0.0005,30]
[328235834,1717083006017,-3373.10522933,0.0005,60]
[328235835,1717083006045,-845.1,0.00050063,60]
[328235836,1717083006070,-600.0,0.000528,2]
[328235837,1717083006096,-1000.0,0.00054794,120]
[328235838,1717083006121,-306.2533128,0.00061511,2]
[328235839,1717083006145,-291.9275846,0.00061648,2]
[328235840,1717083006170,-155.3541646,0.00061648,60]
[328235841,1717083006196,-153.0,0.00061648,30]
[328235842,1717083006222,-153.0,0.00061648,60]
[328235843,1717083006248,-153.0,0.00061648,60]
[328235844,1717083006390,-153.0,0.00061648,60]
[328235845,1717083006414,-291.9275846,0.00061648,2]
[328235846,1717083006437,-153.0,0.0006247,60]
[328235847,1717083006461,-291.9275846,0.0006247,2]
[328235848,1717083006485,-291.9275846,0.0006247,2]
[328235849,1717083006511,-153.0,0.0006247,60]
[328235850,1717083006538,-153.0,0.0006247,60]
[328235851,1717083006562,-291.9275846,0.0006247,2]
[328235852,1717083006586,-153.0,0.0006247,60]
[328235853,1717083006610,-291.9275846,0.0006247,2]
[328235854,1717083006634,-153.0,0.0006247,60]
[328235855,1717083006658,-291.9275846,0.0006247,2]
[328235856,1717083006682,-153.0,0.0006247,60]
[328235857,1717083006706,-291.9275846,0.0006247,2]
[328235858,1717083006731,-153.0,0.0006247,60]
[328235859,1717083006755,-291.9275846,0.0006247,2]
[328235860,1717083006779,-153.0,0.0006247,60]
[328235861,1717083006803,-291.9275846,0.0006247,2]
[328235862,1717083006827,-153.0,0.0006247,60]
[328235863,1717083006851,-291.9275846,0.0006247,2]
[328235864,1717083006874,-153.0,0.0006247,60]
[328235865,1717083006900,-291.9275846,0.0006247,2]
[328235866,1717083006925,-153.0,0.0006247,60]
[328235867,1717083006948,-291.9275846,0.0006247,2]
[328235868,1717083006972,-153.0,0.0006247,60]
[328235869,1717083006995,-153.0,0.0006247,30]
[328235870,1717083007020,-153.0,0.0006247,30]
[328235871,1717083007051,-153.0,0.0006247,30]
[328235872,1717083007074,-159.5047838,0.0006247,30]
[328235873,1717083007102,-845.1,0.00064616,120]
[328235874,1717083007126,-783.1,0.00065753,120]
[328235875,1717083007150,-845.1,0.00079169,120]
[328235876,1717083007174,-1571.25,0.00082181,3]
[328235877,1717083007199,-174.7215615,0.00082189,12]
[328235878,1717083007223,-3583.57527138,0.0008219,7]
[328235879,1717083007246,-2443.32791351,0.0008219,30]
[328235880,1717083007270,-500.0,0.00082191,120]
[328235881,1717083007295,-500.0,0.00082191,120]
[328235882,1717083007318,-502.60088885,0.00082191,120]
[328235883,1717083007343,-500.0,0.00082191,120]
[328235884,1717083007368,-503.2987148,0.00082191,120]
[328235885,1717083007392,-503.94563414,0.00082191,20]
[328235886,1717083007416,-467.90689757,0.00082191,120]
[328235887,1717083007439,-500.0,0.00082191,120]
[328235888,1717083007463,-502.594761,0.00082191,120]
[328235889,1717083007486,-586.77394253,0.00082191,120]
[328235890,1717083007512,-500.0,0.00082191,2]
[328235891,1717083007536,-504.79614984,0.00082191,120]
[328235892,1717083007561,-500.0,0.00082191,120]
[328235893,1717083007585,-500.0,0.00082191,120]
[328235894,1717083007609,-502.65920626,0.00082191,120]
[328235895,1717083007633,-500.0,0.00082191,120]
[328235896,1717083007656,-504.07482886,0.00082191,120]
[328235897,1717083007679,-1598.49,0.00082191,5]
[328235898,1717083007702,-500.0,0.00082191,120]
[328235899,1717083007728,-500.0,0.00082191,120]
[328235900,1717083007752,-500.0,0.00082191,120]
[328235901,1717083007776,-502.969943,0.00082191,120]
[328235902,1717083007800,-500.0,0.00082191,120]
[328235903,1717083007823,-501.95115849,0.00082191,120]
[328235904,1717083007847,-603.65340703,0.00082191,120]
[328235905,1717083007880,-500.0,0.00082191,120]
[328235906,1717083007908,-500.0,0.00082191,120]
[328235907,1717083007933,-502.28395198,0.00082191,120]
[328235908,1717083007959,-500.0,0.00082191,120]
[328235909,1717083007984,-501.68397219,0.00082191,120]
[328235910,1717083008014,-503.69964063,0.00082191,120]
[328235911,1717083008044,-500.0,0.00082191,120]
[328235912,1717083008070,-503.59941214,0.00082191,120]
[328235913,1717083008096,-500.0,0.00082191,120]
[328235914,1717083008121,-505.38629137,0.00082191,120]
[328235915,1717083008147,-500.0,0.00082191,120]
[328235916,1717083008173,-500.0,0.00082191,120]
[328235917,1717083008198,-500.0,0.00082191,120]
[328235918,1717083008222,-505.60971656,0.00082191,120]
[328235919,1717083008248,-503.72348961,0.00082191,120]
[328235920,1717083008273,-296.97892586,0.00082191,120]
[328235921,1717083008301,-510.94979903,0.00082191,120]
[328235922,1717083008326,-503.24232382,0.00082191,120]
[328235923,1717083008351,-500.0,0.00082191,120]
[328235924,1717083008486,-571.63381188,0.00082191,120]
[328235925,1717083008512,-504.4606792,0.00082191,120]
[328235926,1717083008539,-503.40897275,0.00082191,120]
[328235927,1717083008562,-172.90321176,0.00082191,120]
[328235928,1717083008586,-504.19630406,0.00082191,120]
[328235929,1717083008610,-506.45723999,0.00082191,120]
[328235930,1717083008635,-500.0,0.00082191,120]
[328235931,1717083008661,-500.0,0.00082191,120]
[328235932,1717083008686,-500.0,0.00082191,120]
[328235933,1717083008711,-500.0,0.00082191,120]
[328235934,1717083008737,-509.99466192,0.00082191,120]
[328235935,1717083008761,-504.12919092,0.00082191,120]
[328235936,1717083008787,-508.90610522,0.00082191,120]
[328235937,1717083008810,-440.89697305,0.00082191,120]
[328235938,1717083008834,-505.22585693,0.00082191,120]
[328235939,1717083008858,-500.0,0.00082191,120]
[328235940,1717083008882,-204.95167035,0.00082191,120]
[328235941,1717083008906,-500.0,0.00082191,120]
[328235942,1717083008930,-508.06284927,0.00082191,120]
[328235943,1717083008956,-503.86679973,0.00082191,120]
[328235944,1717083008981,-500.0,0.00082191,120]
[328235945,1717083009006,-500.0,0.00082191,120]
[328235946,1717083009037,-504.07605859,0.00082191,120]
[328235947,1717083009063,-506.5700922,0.00082191,120]
[328235948,1717083009090,-505.9374391,0.00082191,120]
[328235949,1717083009116,-500.0,0.00082191,120]
[328235950,1717083009141,-500.0,0.00082191,120]
[328235951,1717083009165,-508.13289764,0.00082191,120]
[328235952,1717083009191,-507.65273685,0.00082191,120]
[328235953,1717083009215,-505.7966943,0.00082191,120]
[328235954,1717083009241,-502.72109967,0.00082191,120]
[328235955,1717083009266,-500.0,0.00082191,120]
[328235956,1717083009295,-506.94435378,0.00082191,120]
[328235957,1717083009320,-504.19180107,0.00082191,120]
[328235958,1717083009344,-500.0,0.00082191,120]
[328235959,1717083009370,-500.0,0.00082191,120]
[328235960,1717083009394,-503.27415897,0.00082191,120]
[328235961,1717083009421,-503.94518803,0.00082191,120]
[328235962,1717083009446,-500.05361871,0.00082191,120]
[328235963,1717083009470,-500.0,0.00082191,120]
[328235964,1717083009503,-506.18550538,0.00082191,120]
[328235965,1717083009539,-508.99035963,0.00082191,120]
[328235966,1717083009568,-384.07010059,0.00082191,120]
[328235967,1717083009599,-500.0,0.00082191,120]
[328235968,1717083009631,-506.16232955,0.00082191,120]
[328235969,1717083009661,-507.28393968,0.00082191,120]
[328235970,1717083009691,-506.08502815,0.00082191,120]
[328235971,1717083009723,-506.27871621,0.00082191,120]
[328235972,1717083009755,-507.91398818,0.00082191,120]
[328235973,1717083009786,-500.0,0.00082191,120]
[328235974,1717083009815,-500.0,0.00082191,120]